Workbook

Sheet Лист1
A1: t | C1: МБОУ СОШ №5 | F1: Согласовано: | G1: должность | H1: директор
A2: Типовое примерное меню приготавливаемых блюд | G2: фамилия | H2: Терехова Ю.Ю.
A3: Возрастная категория | E3: 7-11 лет | G3: дата | H3: 2 | I3: 9 | J3: 2024
H4: день | I4: месяц | J4: год
A5: Неделя | B5: День недели | C5: Прием пищи | D5: Раздел меню | E5: Блюда | F5: Вес блюда, г | G5: Белки | H5: Жиры | I5: Углеводы | J5: Калорийность | K5: № рецептуры | L5: Цена
A6: 1 | B6: 1 | C6: Завтрак | D6: закуска | E6: Бутерброд с маслом | F6: 60 | G6: 4.5 | H6: 15 | I6: 25.5 | J6: 223.6 | K6: 1//04
D7: 2 блюдо | E7: Котлета мясная | F7: 100 | G7: 15.7 | H7: 14.4 | I7: 16 | J7: 258.6 | K7: 416/94
D8: гарнир | E8: Каша гречневая | F8: 150 | G8: 8.7 | H8: 7.8 | I8: 42.6 | J8: 279 | K8: 464/94
D9: гор.напиток | E9: Чай с сахаром | F9: 200 | G9: 0.3 | H9: 0 | I9: 15 | J9: 57.9 | K9: 685/04
D10: хлеб | E10: Хлеб пшеничный | F10: 20 | G10: 2.2 | H10: 0.3 | I10: 12.6 | J10: 45.8 | K10: пром
D11: хлеб | E11: Хлеб ржаной | F11: 20 | G11: 1.6 | H11: 0.2 | I11: 9.3 | J11: 42.4 | K11: пром
D13: итого | F13: =SUM(F6:F12) -> 550 | G13: =SUM(G6:G12) -> 33 | H13: =SUM(H6:H12) -> 37.7 | I13: =SUM(I6:I12) -> 121 | J13: =SUM(J6:J12) -> 907.3 | L13: 94
A14: =A6 -> 1 | B14: =B6 -> 1 | C14: Обед | D14: закуска | E14: Нарезка из свежих огурцов | F14: 60 | G14: 0.5 | H14: 0 | I14: 1.6 | J14: 7.8 | K14: ттк
D15: 1 блюдо | E15: Суп картофельный с бобовыми и мясом | F15: 260 | G15: 9.3 | H15: 6.2 | I15: 22.3 | J15: 183.2 | K15: 138/94
D16: 2 блюдо | E16: Плов из свинины | F16: 260 | G16: 29.9 | H16: 49.9 | I16: 42.5 | J16: 744.9 | K16: 403/94
D17: напиток | E17: Компот из сухофруктов | F17: 200 | G17: 0.6 | H17: 0 | I17: 31.4 | J17: 124 | K17: 638/04
D18: хлеб | E18: Хлеб пшеничный | F18: 30 | G18: 3.2 | H18: 0.4 | I18: 19 | J18: 68.7 | K18: пром
D19: хлеб | E19: Хлеб ржаной | F19: 30 | G19: 2.3 | H19: 0.4 | I19: 14 | J19: 63.6 | K19: пром
D21: итого | F21: =SUM(F14:F20) -> 840 | G21: =SUM(G14:G20) -> 45.8 | H21: =SUM(H14:H20) -> 56.9 | I21: =SUM(I14:I20) -> 130.8 | J21: =SUM(J14:J20) -> 1192.2 | L21: 131
A22: =A6 -> 1 | B22: =B6 -> 1 | C22: Итого за день: | F22: =F13+F21 -> 1390 | G22: =G13+G21 -> 78.8 | H22: =H13+H21 -> 94.6 | I22: =I13+I21 -> 251.8 | J22: =J13+J21 -> 2099.5 | L22: =L13+L21 -> 225
A23: 1 | B23: 2 | C23: Завтрак | D23: закуска | E23: Кисломолочный продукт " Йогурт" | F23: 125 | G23: 3.5 | H23: 3.1 | I23: 16.3 | J23: 107.1 | K23: пром
D24: гор.блюдо | E24: Каша молочная "Дружба" с маслом | F24: 210 | G24: 7.3 | H24: 12.4 | I24: 44.7 | J24: 320 | K24: 35/03
D25: выпечка | E25: Ватрушка "Лакомка" | F25: 100 | G25: 10.4 | H25: 17 | I25: 39.4 | J25: 352 | K25: 78/03
D26: гор.напиток | E26: Кофейный напиток | F26: 200 | G26: 2.4 | H26: 1.6 | I26: 27.5 | J26: 134 | K26: 692/04
D27: хлеб | E27: Хлеб пшеничный | F27: 20 | G27: 2.2 | H27: 0.3 | I27: 12.6 | J27: 45.8 | K27: пром
D28: хлеб | E28: Хлеб ржаной | F28: 20 | G28: 1.6 | H28: 0.2 | I28: 9.3 | J28: 42.4 | K28: пром
D30: итого | F30: =SUM(F23:F29) -> 675 | G30: =SUM(G23:G29) -> 27.4 | H30: =SUM(H23:H29) -> 34.6 | I30: =SUM(I23:I29) -> 149.8 | J30: =SUM(J23:J29) -> 1001.3 | L30: 94
A31: =A23 -> 1 | B31: =B23 -> 2 | C31: Обед | D31: закуска | E31: Салат из отварного картофеля с зеленым горошком | F31: 60 | G31: 1.2 | H31: 9.2 | I31: 6.4 | J31: 112.8 | K31: 19//03
D32: 1 блюдо | E32: Рассольник "Ленинградский" с мясом со сметаной | F32: 270 | G32: 6.4 | H32: 7.1 | I32: 20.4 | J32: 173.7 | K32: 129/94
D33: 2 блюдо | E33: Поджарка из свинины | F33: 100 | G33: 12.4 | H33: 34.1 | I33: 5.4 | J33: 391.2 | K33: 424/04
D34: гарнир | E34: Макароны отварные | F34: 150 | G34: 5.3 | H34: 6.2 | I34: 35.3 | J34: 221 | K34: 469/94
D35: напиток | E35: Компот из свежих яблок | F35: 200 | G35: 0.1 | H35: 0 | I35: 26.4 | J35: 102 | K35: 770/97
D36: хлеб | E36: Хлеб пшеничный | F36: 30 | G36: 3.2 | H36: 0.4 | I36: 19 | J36: 68.7 | K36: пром
D37: хлеб | E37: Хлеб ржаной | F37: 30 | G37: 2.3 | H37: 0.4 | I37: 14 | J37: 63.6 | K37: пром
D39: итого | F39: =SUM(F31:F38) -> 840 | G39: =SUM(G31:G38) -> 30.9 | H39: =SUM(H31:H38) -> 57.4 | I39: =SUM(I31:I38) -> 126.9 | J39: =SUM(J31:J38) -> 1133 | L39: 131
A40: =A23 -> 1 | B40: =B23 -> 2 | C40: Итого за день: | F40: =F30+F39 -> 1515 | G40: =G30+G39 -> 58.3 | H40: =H30+H39 -> 92 | I40: =I30+I39 -> 276.7 | J40: =J30+J39 -> 2134.3 | L40: =L30+L39 -> 225
A41: 1 | B41: 3 | C41: Завтрак | D41: закуска | E41: Яйцо вареное | F41: 60 | G41: 5.1 | H41: 4.6 | I41: 0.3 | J41: 63 | K41: ттк
D42: 2 блюдо | E42: Тефтели рыбные | F42: 100 | G42: 14 | H42: 8.9 | I42: 12.8 | J42: 188 | K42: 332/94
D43: гарнир | E43: Картофельное пюре | F43: 150 | G43: 3.2 | H43: 6.8 | I43: 21.9 | J43: 163.5 | K43: 472/94
D44: гор.напиток | E44: Напиток витаминизированный | F44: 200 | G44: 0 | H44: 0 | I44: 19 | J44: 80 | K44: ттк
D45: хлеб | E45: Хлеб пшеничный | F45: 20 | G45: 2.2 | H45: 0.3 | I45: 12.6 | J45: 45.8 | K45: пром
D46: хлеб | E46: Хлеб ржаной | F46: 20 | G46: 1.6 | H46: 0.2 | I46: 9.3 | J46: 42.4 | K46: пром
D48: итого | F48: =SUM(F41:F47) -> 550 | G48: =SUM(G41:G47) -> 26.1 | H48: =SUM(H41:H47) -> 20.8 | I48: =SUM(I41:I47) -> 75.9 | J48: =SUM(J41:J47) -> 582.7 | L48: 94
A49: =A41 -> 1 | B49: =B41 -> 3 | C49: Обед | D49: закуска | E49: Нарезка из свежих помидор | F49: 60 | G49: 0.7 | H49: 0 | I49: 2.3 | J49: 12 | K49: ттк
D50: 1 блюдо | E50: Борщ из св. капусты с мясом со сметаной | F50: 270 | G50: 10.2 | H50: 9.7 | I50: 13.3 | J50: 181.8 | K50: 110/94
D51: гор. блюдо | E51: Каша молочная пшенная с маслом | F51: 210 | G51: 4.7 | H51: 9.6 | I51: 26.8 | J51: 214 | K51: 262/94
D52: выпечка | E52: Сдоба "Аппетитная" | F52: 100 | G52: 12.4 | H52: 9.6 | I52: 35.2 | J52: 246 | K52: ттк
D53: напиток | E53: Кисель витаминизированный | F53: 200 | G53: 0 | H53: 0 | I53: 24 | J53: 95 | K53: 82/03
D54: хлеб | E54: Хлеб пшеничный | F54: 30 | G54: 3.2 | H54: 0.4 | I54: 19 | J54: 68.7 | K54: пром
D55: хлеб | E55: Хлеб ржаной | F55: 30 | G55: 2.3 | H55: 0.4 | I55: 14 | J55: 63.6 | K55: пром
D57: итого | F57: =SUM(F49:F56) -> 900 | G57: =SUM(G49:G56) -> 33.5 | H57: =SUM(H49:H56) -> 29.7 | I57: =SUM(I49:I56) -> 134.6 | J57: =SUM(J49:J56) -> 881.1 | L57: 131
A58: =A41 -> 1 | B58: =B41 -> 3 | C58: Итого за день: | F58: =F48+F57 -> 1450 | G58: =G48+G57 -> 59.6 | H58: =H48+H57 -> 50.5 | I58: =I48+I57 -> 210.5 | J58: =J48+J57 -> 1463.8 | L58: =L48+L57 -> 225
A59: 1 | B59: 4 | C59: Завтрак | D59: закуска | E59: Нарезка из свежих огурцов | F59: 60 | G59: 0.5 | H59: 0 | I59: 1.6 | J59: 7.8 | K59: ттк
D60: 2 блюдо | E60: Кура отварная | F60: 100 | G60: 17.1 | H60: 17.2 | I60: 0 | J60: 223 | K60: 439/94
D61: гарнир | E61: Рис отварной | F61: 150 | G61: 3.8 | H61: 6.2 | I61: 38.6 | J61: 228 | K61: 493/94
D62: гор.напиток | E62: Напиток мз шиповника | F62: 200 | G62: 0.4 | H62: 0 | I62: 23.6 | J62: 139.8 | K62: 705/04
D63: хлеб | E63: Хлеб пшеничный | F63: 20 | G63: 2.2 | H63: 0.3 | I63: 12.6 | J63: 45.8 | K63: пром
D64: хлеб | E64: Хлеб ржаной | F64: 20 | G64: 1.6 | H64: 0.2 | I64: 9.3 | J64: 42.4 | K64: пром
D66: итого | F66: =SUM(F59:F65) -> 550 | G66: =SUM(G59:G65) -> 25.6 | H66: =SUM(H59:H65) -> 23.9 | I66: =SUM(I59:I65) -> 85.7 | J66: =SUM(J59:J65) -> 686.8 | L66: 94
A67: =A59 -> 1 | B67: =B59 -> 4 | C67: Обед | D67: закуска | E67: Винегрет овощной | F67: 60 | G67: 0.8 | H67: 6.1 | I67: 4.1 | J67: 74.4 | K67: 71/04
D68: 1 блюдо | E68: Суп-пюре картофельный с курой и гренками | F68: 275 | G68: 7.4 | H68: 7.3 | I68: 33 | J68: 232.4 | K68: 212/97
D69: 2 блюдо | E69: Кнели куриные | F69: 100 | G69: 19.1 | H69: 13.9 | I69: 6.8 | J69: 232 | K69: 505/04
D70: гарнир | E70: Каша гречневая | F70: 150 | G70: 8.7 | H70: 7.8 | I70: 42.6 | J70: 279 | K70: 464/94
D71: напиток | E71: Компот из кураги | F71: 200 | G71: 1.2 | H71: 0 | I71: 31.6 | J71: 126 | K71: 638/04
D72: хлеб | E72: Хлеб пшеничный | F72: 30 | G72: 3.2 | H72: 0.4 | I72: 19 | J72: 68.7 | K72: пром
D73: хлеб | E73: Хлеб ржаной | F73: 30 | G73: 2.3 | H73: 0.4 | I73: 14 | J73: 63.6 | K73: пром
D75: итого | F75: =SUM(F67:F74) -> 845 | G75: =SUM(G67:G74) -> 42.7 | H75: =SUM(H67:H74) -> 35.9 | I75: =SUM(I67:I74) -> 151.1 | J75: =SUM(J67:J74) -> 1076.1 | L75: 131
A76: =A59 -> 1 | B76: =B59 -> 4 | C76: Итого за день: | F76: =F66+F75 -> 1395 | G76: =G66+G75 -> 68.3 | H76: =H66+H75 -> 59.8 | I76: =I66+I75 -> 236.8 | J76: =J66+J75 -> 1762.9 | L76: =L66+L75 -> 225
A77: 1 | B77: 5 | C77: Завтрак | D77: закуска | E77: Нарезка из свежих помидор | F77: 60 | G77: 0.7 | H77: 0 | I77: 2.3 | J77: 12 | K77: ттк
D78: 2 блюдо | E78: Поджарка из свинины | F78: 100 | G78: 12.4 | H78: 34.1 | I78: 5.4 | J78: 391.2 | K78: 424/04
D79: гарнир | E79: Макароны отварные | F79: 150 | G79: 5.3 | H79: 6.2 | I79: 35.3 | J79: 221 | K79: 469/94
D80: гор.напиток | E80: Кофейный напиток | F80: 200 | G80: 2.4 | H80: 1.6 | I80: 27.5 | J80: 134 | K80: 692/04
D81: хлеб | E81: Хлеб пшеничный | F81: 20 | G81: 2.2 | H81: 0.3 | I81: 12.6 | J81: 45.8 | K81: пром
D82: хлеб | E82: Хлеб ржаной | F82: 20 | G82: 1.6 | H82: 0.2 | I82: 9.3 | J82: 42.4 | K82: пром
D84: итого | F84: =SUM(F77:F83) -> 550 | G84: =SUM(G77:G83) -> 24.6 | H84: =SUM(H77:H83) -> 42.4 | I84: =SUM(I77:I83) -> 92.4 | J84: =SUM(J77:J83) -> 846.4 | L84: 94
A85: =A77 -> 1 | B85: =B77 -> 5 | C85: Обед | D85: закуска | E85: Салат "Здоровье" | F85: 60 | G85: 0.7 | H85: 6 | I85: 5.5 | J85: 79.2 | K85: 7//03
D86: 1 блюдо | E86: Суп из овощей с мясом со сметаной | F86: 270 | G86: 4.6 | H86: 6.3 | I86: 12.6 | J86: 123.7 | K86: 132/94
D87: 2 блюдо | E87: Котлета рыбная | F87: 100 | G87: 10.4 | H87: 1.9 | I87: 6.8 | J87: 85.9 | K87: 324/94
D88: гарнир | E88: Рагу овощное | F88: 150 | G88: 3.5 | H88: 7.7 | I88: 16.1 | J88: 145.5 | K88: 541/04
D89: напиток | E89: Напиток витаминизированный | F89: 200 | G89: 0 | H89: 0 | I89: 19 | J89: 80 | K89: ттк
D90: хлеб | E90: Хлеб пшеничный | F90: 20 | G90: 2.2 | H90: 0.3 | I90: 12.6 | J90: 45.8 | K90: пром
D91: хлеб | E91: Хлеб ржаной | F91: 25 | G91: 2 | H91: 0.3 | I91: 11.6 | J91: 53 | K91: пром
D93: итого | F93: =SUM(F85:F92) -> 825 | G93: =SUM(G85:G92) -> 23.4 | H93: =SUM(H85:H92) -> 22.5 | I93: =SUM(I85:I92) -> 84.2 | J93: =SUM(J85:J92) -> 613.1 | L93: 131
A94: =A77 -> 1 | B94: =B77 -> 5 | C94: Итого за день: | F94: =F84+F93 -> 1375 | G94: =G84+G93 -> 48 | H94: =H84+H93 -> 64.9 | I94: =I84+I93 -> 176.6 | J94: =J84+J93 -> 1459.5 | L94: =L84+L93 -> 225
A95: 2 | B95: 1 | C95: Завтрак | D95: закуска | E95: Яйцо вареное | F95: 60 | G95: 5.1 | H95: 4.6 | I95: 0.3 | J95: 63 | K95: ттк
D96: 2 блюдо | E96: Поджарка из свинины | F96: 100 | G96: 12.4 | H96: 34.1 | I96: 5.4 | J96: 391.2 | K96: 424/04
D97: гарнир | E97: Каша гречневая | F97: 150 | G97: 8.7 | H97: 7.8 | I97: 42.6 | J97: 279 | K97: 464/94
D98: гор.напиток | E98: Напиток мз шиповника | F98: 200 | G98: 0.4 | H98: 0 | I98: 23.6 | J98: 139.8 | K98: 705/04
D99: хлеб | E99: Хлеб пшеничный | F99: 20 | G99: 2.2 | H99: 0.3 | I99: 12.6 | J99: 45.8 | K99: пром
D100: хлеб | E100: Хлеб ржаной | F100: 20 | G100: 1.6 | H100: 0.2 | I100: 9.3 | J100: 42.4 | K100: пром
D102: итого | F102: =SUM(F95:F101) -> 550 | G102: =SUM(G95:G101) -> 30.4 | H102: =SUM(H95:H101) -> 47 | I102: =SUM(I95:I101) -> 93.8 | J102: =SUM(J95:J101) -> 961.2 | L102: 94
A103: =A95 -> 2 | B103: =B95 -> 1 | C103: Обед | D103: закуска | E103: Бутерброд с маслом | F103: 60 | G103: 4.5 | H103: 15 | I103: 25.5 | J103: 223.6 | K103: 1//04
D104: 1 блюдо | E104: Щи из свежей капусты с мясом со сметаной | F104: 270 | G104: 5.6 | H104: 7.5 | I104: 8.6 | J104: 123.7 | K104: 120/94
D105: 2 блюдо | E105: Котлета мясная | F105: 100 | G105: 15.7 | H105: 14.4 | I105: 16 | J105: 258.6 | K105: 416/94
D106: гарнир | E106: Макароны отварные | F106: 150 | G106: 5.3 | H106: 6.2 | I106: 35.3 | J106: 221 | K106: 469/94
D107: напиток | E107: Компот из свежих яблок | F107: 200 | G107: 0.1 | H107: 0 | I107: 26.4 | J107: 102 | K107: 770/97
D108: хлеб | E108: Хлеб пшеничный | F108: 30 | G108: 3.2 | H108: 0.4 | I108: 19 | J108: 68.7 | K108: пром
D109: хлеб | E109: Хлеб ржаной | F109: 30 | G109: 2.3 | H109: 0.4 | I109: 14 | J109: 63.6 | K109: пром
D111: итого | F111: =SUM(F103:F110) -> 840 | G111: =SUM(G103:G110) -> 36.7 | H111: =SUM(H103:H110) -> 43.9 | I111: =SUM(I103:I110) -> 144.8 | J111: =SUM(J103:J110) -> 1061.2 | L111: 131
A112: =A95 -> 2 | B112: =B95 -> 1 | C112: Итого за день: | F112: =F102+F111 -> 1390 | G112: =G102+G111 -> 67.1 | H112: =H102+H111 -> 90.9 | I112: =I102+I111 -> 238.6 | J112: =J102+J111 -> 2022.4 | L112: =L102+L111 -> 225
A113: 2 | B113: 2 | C113: Завтрак | D113: закуска | E113: Кисломолочный продукт " Йогурт" | F113: 125 | G113: 3.5 | H113: 3.1 | I113: 16.3 | J113: 107.1 | K113: пром
D114: гор.блюдо | E114: Каша молочная рисовая с маслом | F114: 210 | G114: 2.2 | H114: 8.5 | I114: 22.1 | J114: 176 | K114: 262/94
D115: выпечка | E115: Сдоба "Аппетитная" | F115: 100 | G115: 12.4 | H115: 9.6 | I115: 35.2 | J115: 246 | K115: ттк
D116: гор.напиток | E116: Кисель витаминизированный | F116: 200 | G116: 0 | H116: 0 | I116: 24 | J116: 95 | K116: 82/03
D117: хлеб | E117: Хлеб пшеничный | F117: 20 | G117: 2.2 | H117: 0.3 | I117: 12.6 | J117: 45.8 | K117: пром
D118: хлеб | E118: Хлеб ржаной | F118: 20 | G118: 1.6 | H118: 0.2 | I118: 9.3 | J118: 42.4 | K118: пром
D120: итого | F120: =SUM(F113:F119) -> 675 | G120: =SUM(G113:G119) -> 21.9 | H120: =SUM(H113:H119) -> 21.7 | I120: =SUM(I113:I119) -> 119.5 | J120: =SUM(J113:J119) -> 712.3 | L120: 94
A121: =A113 -> 2 | B121: =B113 -> 2 | C121: Обед | D121: закуска | E121: Нарезка из свежих огурцов | F121: 60 | G121: 0.5 | H121: 0 | I121: 1.6 | J121: 7.8 | K121: ттк
D122: 1 блюдо | E122: Борщ из свежей капусты с мясом со сметаной | F122: 270 | G122: 5.3 | H122: 7.8 | I122: 13.4 | J122: 144.7 | K122: 110/94
D123: 2 блюдо | E123: Котлета рыбная | F123: 100 | G123: 10.4 | H123: 1.9 | I123: 6.8 | J123: 85.9 | K123: 324/94
D124: гарнир | E124: Картофельное пюре | F124: 150 | G124: 3.2 | H124: 6.8 | I124: 21.9 | J124: 163.5 | K124: 472/94
D125: напиток | E125: Компот из сухофруктов | F125: 200 | G125: 0.6 | H125: 0 | I125: 31.4 | J125: 124 | K125: 638/04
D126: хлеб | E126: Хлеб пшеничный | F126: 30 | G126: 3.2 | H126: 0.4 | I126: 19 | J126: 68.7 | K126: пром
D127: хлеб | E127: Хлеб ржаной | F127: 30 | G127: 2.3 | H127: 0.4 | I127: 14 | J127: 63.6 | K127: пром
D129: итого | F129: =SUM(F121:F128) -> 840 | G129: =SUM(G121:G128) -> 25.5 | H129: =SUM(H121:H128) -> 17.3 | I129: =SUM(I121:I128) -> 108.1 | J129: =SUM(J121:J128) -> 658.2 | L129: 131
A130: =A113 -> 2 | B130: =B113 -> 2 | C130: Итого за день: | F130: =F120+F129 -> 1515 | G130: =G120+G129 -> 47.4 | H130: =H120+H129 -> 39 | I130: =I120+I129 -> 227.6 | J130: =J120+J129 -> 1370.5 | L130: =L120+L129 -> 225
A131: 2 | B131: 3 | C131: Завтрак | D131: закуска | E131: Нарезка из свежих помидор | F131: 60 | G131: 0.7 | H131: 0 | I131: 2.3 | J131: 12 | K131: ттк
D132: гор.блюдо | E132: Плов из свинины | F132: 260 | G132: 29.9 | H132: 49.9 | I132: 42.5 | J132: 744.9 | K132: 403/94
D133: гор.напиток | E133: Кофейный напиток | F133: 200 | G133: 2.4 | H133: 1.6 | I133: 27.5 | J133: 134 | K133: 692/04
D134: хлеб | E134: Хлеб пшеничный | F134: 20 | G134: 2.2 | H134: 0.3 | I134: 12.6 | J134: 45.8 | K134: пром
D135: хлеб | E135: Хлеб ржаной | F135: 20 | G135: 1.6 | H135: 0.2 | I135: 9.3 | J135: 42.4 | K135: пром
D137: итого | F137: =SUM(F131:F136) -> 560 | G137: =SUM(G131:G136) -> 36.8 | H137: =SUM(H131:H136) -> 52 | I137: =SUM(I131:I136) -> 94.2 | J137: =SUM(J131:J136) -> 979.1 | L137: 94
A138: =A131 -> 2 | B138: =B131 -> 3 | C138: Обед | D138: закуска | E138: Салат из свежей капусты с морковью | F138: 60 | G138: 0.8 | H138: 4.9 | I138: 5.3 | J138: 52.8 | K138: 43/04
D139: 1 блюдо | E139: Суп-пюре картофельный с мясом и гренками | F139: 275 | G139: 8.9 | H139: 7 | I139: 33 | J139: 235.7 | K139: 129/94
D140: гор.блюдо | E140: Каша молочная "Дружба" с маслом | F140: 210 | G140: 7.3 | H140: 12.4 | I140: 44.7 | J140: 320 | K140: 35/03
D141: выпечка | E141: Ватрушка "Лакомка" | F141: 100 | G141: 10.4 | H141: 17 | I141: 39.4 | J141: 352 | K141: 78/03
D142: напиток | E142: Какао с молоком | F142: 200 | G142: 4.9 | H142: 5 | I142: 32.5 | J142: 190 | K142: 642/94
D143: хлеб | E143: Хлеб пшеничный | F143: 30 | G143: 3.2 | H143: 0.4 | I143: 19 | J143: 68.7 | K143: пром
D144: хлеб | E144: Хлеб ржаной | F144: 30 | G144: 2.3 | H144: 0.4 | I144: 14 | J144: 63.6 | K144: пром
D146: итого | F146: =SUM(F138:F145) -> 905 | G146: =SUM(G138:G145) -> 37.8 | H146: =SUM(H138:H145) -> 47.1 | I146: =SUM(I138:I145) -> 187.9 | J146: =SUM(J138:J145) -> 1282.8 | L146: 131
A147: =A131 -> 2 | B147: =B131 -> 3 | C147: Итого за день: | F147: =F137+F146 -> 1465 | G147: =G137+G146 -> 74.6 | H147: =H137+H146 -> 99.1 | I147: =I137+I146 -> 282.1 | J147: =J137+J146 -> 2261.9 | L147: =L137+L146 -> 225
A148: 2 | B148: 4 | C148: Завтрак | D148: закуска | E148: Бутерброд с маслом | F148: 60 | G148: 4.5 | H148: 15 | I148: 25.5 | J148: 223.6 | K148: 1//04
D149: 2 блюдо | E149: Котлета куриная | F149: 100 | G149: 18.6 | H149: 13.5 | I149: 18.2 | J149: 271 | K149: 518/97
D150: гарнир | E150: Рагу овощное | F150: 150 | G150: 3.5 | H150: 7.7 | I150: 16.1 | J150: 145.5 | K150: 541/04
D151: гор.напиток | E151: Чай с сахаром | F151: 200 | G151: 0.3 | H151: 0 | I151: 15 | J151: 57.9 | K151: 685/04
D152: хлеб | E152: Хлеб пшеничный | F152: 20 | G152: 2.2 | H152: 0.3 | I152: 12.6 | J152: 45.8 | K152: пром
D153: хлеб | E153: Хлеб ржаной | F153: 20 | G153: 1.6 | H153: 0.2 | I153: 9.3 | J153: 42.4 | K153: пром
D155: итого | F155: =SUM(F148:F154) -> 550 | G155: =SUM(G148:G154) -> 30.7 | H155: =SUM(H148:H154) -> 36.7 | I155: =SUM(I148:I154) -> 96.7 | J155: =SUM(J148:J154) -> 786.2 | L155: 94
A156: =A148 -> 2 | B156: =B148 -> 4 | C156: Обед | D156: закуска | E156: Салат из отварного картофеля с зеленым горошком | F156: 60 | G156: 1.2 | H156: 9.2 | I156: 6.4 | J156: 112.8 | K156: 19//03
D157: 1 блюдо | E157: Суп из овощей с курой со сметаной | F157: 270 | G157: 2.9 | H157: 6.6 | I157: 12.6 | J157: 120.4 | K157: 132/94
D158: 2 блюдо | E158: Кура отварная | F158: 100 | G158: 17.1 | H158: 17.2 | I158: 0 | J158: 223 | K158: 439/94
D159: гарнир | E159: Каша гречневая | F159: 150 | G159: 8.7 | H159: 7.8 | I159: 42.6 | J159: 279 | K159: 464/94
D160: напиток | E160: Компот из кураги | F160: 200 | G160: 1.2 | H160: 0 | I160: 31.6 | J160: 126 | K160: 638/04
D161: хлеб | E161: Хлеб пшеничный | F161: 30 | G161: 3.2 | H161: 0.4 | I161: 19 | J161: 68.7 | K161: пром
D162: хлеб | E162: Хлеб ржаной | F162: 30 | G162: 2.3 | H162: 0.4 | I162: 14 | J162: 63.6 | K162: пром
D164: итого | F164: =SUM(F156:F163) -> 840 | G164: =SUM(G156:G163) -> 36.6 | H164: =SUM(H156:H163) -> 41.6 | I164: =SUM(I156:I163) -> 126.2 | J164: =SUM(J156:J163) -> 993.5 | L164: 131
A165: =A148 -> 2 | B165: =B148 -> 4 | C165: Итого за день: | F165: =F155+F164 -> 1390 | G165: =G155+G164 -> 67.3 | H165: =H155+H164 -> 78.3 | I165: =I155+I164 -> 222.9 | J165: =J155+J164 -> 1779.7 | L165: =L155+L164 -> 225
A166: 2 | B166: 5 | C166: Завтрак | D166: закуска | E166: Салат "Здоровье" | F166: 60 | G166: 0.7 | H166: 6 | I166: 5.5 | J166: 79.2 | K166: 7//03
D167: 2 блюдо | E167: Котлета рыбная | F167: 100 | G167: 10.4 | H167: 1.9 | I167: 6.8 | J167: 85.9 | K167: 324/94
D168: гарнир | E168: Картофельное пюре | F168: 150 | G168: 3.2 | H168: 6.8 | I168: 21.9 | J168: 163.5 | K168: 472/94
D169: гор.напиток | E169: Напиток витаминизированный | F169: 200 | G169: 0 | H169: 0 | I169: 19 | J169: 80 | K169: ттк
D170: хлеб | E170: Хлеб пшеничный | F170: 20 | G170: 2.2 | H170: 0.3 | I170: 12.6 | J170: 45.8 | K170: пром
D171: хлеб | E171: Хлеб ржаной | F171: 20 | G171: 1.6 | H171: 0.2 | I171: 9.3 | J171: 42.4 | K171: пром
D173: итого | F173: =SUM(F166:F172) -> 550 | G173: =SUM(G166:G172) -> 18.1 | H173: =SUM(H166:H172) -> 15.2 | I173: =SUM(I166:I172) -> 75.1 | J173: =SUM(J166:J172) -> 496.8 | L173: 94
A174: =A166 -> 2 | B174: =B166 -> 5 | C174: Обед | D174: закуска | E174: Яйцо вареное | F174: 60 | G174: 5.1 | H174: 4.6 | I174: 0.3 | J174: 63 | K174: ттк
D175: 1 блюдо | E175: Суп-лапша "Домашняя" с мясом | F175: 260 | G175: 5.9 | H175: 6.4 | I175: 13.9 | J175: 137.7 | K175: 151/94
D176: 2 блюдо | E176: Поджарка из свинины | F176: 100 | G176: 12.4 | H176: 34.1 | I176: 5.4 | J176: 391.2 | K176: 424/04
D177: гарнир | E177: Рис отварной | F177: 150 | G177: 3.8 | H177: 6.2 | I177: 38.6 | J177: 228 | K177: 493/94
D178: гор.напиток | E178: Чай с сахаром | F178: 200 | G178: 0.3 | H178: 0 | I178: 15 | J178: 57.9 | K178: 685/04
D179: хлеб | E179: Хлеб пшеничный | F179: 30 | G179: 3.2 | H179: 0.4 | I179: 19 | J179: 68.7 | K179: пром
D180: хлеб | E180: Хлеб ржаной | F180: 30 | G180: 2.3 | H180: 0.4 | I180: 14 | J180: 63.6 | K180: пром
D182: итого | F182: =SUM(F174:F181) -> 830 | G182: =SUM(G174:G181) -> 33 | H182: =SUM(H174:H181) -> 52.1 | I182: =SUM(I174:I181) -> 106.2 | J182: =SUM(J174:J181) -> 1010.1 | L182: 131
A183: =A166 -> 2 | B183: =B166 -> 5 | C183: Итого за день: | F183: =F173+F182 -> 1380 | G183: =G173+G182 -> 51.1 | H183: =H173+H182 -> 67.3 | I183: =I173+I182 -> 181.3 | J183: =J173+J182 -> 1506.9 | L183: =L173+L182 -> 225
C184: Среднее значение за период: | F184: =(F22+F40+F58+F76+F94+F112+F130+F147+F165+F183)/(IF(F22=0, 0, 1)+IF(F40=0, 0, 1)+IF(F58=0, 0, 1)+IF(F76=0, 0, 1)+IF(F94=0, 0, 1)+IF(F112=0, 0, 1)+IF(F130=0, 0, 1)+IF(F147=0, 0, 1)+IF(F165=0, 0, 1)+IF(F183=0, 0, 1)) -> 1426.5 | G184: =(G22+G40+G58+G76+G94+G112+G130+G147+G165+G183)/(IF(G22=0, 0, 1)+IF(G40=0, 0, 1)+IF(G58=0, 0, 1)+IF(G76=0, 0, 1)+IF(G94=0, 0, 1)+IF(G112=0, 0, 1)+IF(G130=0, 0, 1)+IF(G147=0, 0, 1)+IF(G165=0, 0, 1)+IF(G183=0, 0, 1)) -> 62.05 | H184: =(H22+H40+H58+H76+H94+H112+H130+H147+H165+H183)/(IF(H22=0, 0, 1)+IF(H40=0, 0, 1)+IF(H58=0, 0, 1)+IF(H76=0, 0, 1)+IF(H94=0, 0, 1)+IF(H112=0, 0, 1)+IF(H130=0, 0, 1)+IF(H147=0, 0, 1)+IF(H165=0, 0, 1)+IF(H183=0, 0, 1)) -> 73.64 | I184: =(I22+I40+I58+I76+I94+I112+I130+I147+I165+I183)/(IF(I22=0, 0, 1)+IF(I40=0, 0, 1)+IF(I58=0, 0, 1)+IF(I76=0, 0, 1)+IF(I94=0, 0, 1)+IF(I112=0, 0, 1)+IF(I130=0, 0, 1)+IF(I147=0, 0, 1)+IF(I165=0, 0, 1)+IF(I183=0, 0, 1)) -> 230.49 | J184: =(J22+J40+J58+J76+J94+J112+J130+J147+J165+J183)/(IF(J22=0, 0, 1)+IF(J40=0, 0, 1)+IF(J58=0, 0, 1)+IF(J76=0, 0, 1)+IF(J94=0, 0, 1)+IF(J112=0, 0, 1)+IF(J130=0, 0, 1)+IF(J147=0, 0, 1)+IF(J165=0, 0, 1)+IF(J183=0, 0, 1)) -> 1786.14 | L184: =L22+L40+L58+L76+L94+L112+L130+L147+L165+L183 -> 2250
